Cogmind - Beta 11.1 @@@ ROGUE MODE // 2022.05.03 @ 18:58:14 Player: Shodan Result: Self-destructed Performance ------------- Evolutions (2) 1000 Regions Visited (5) 1000 Robots Destroyed (30) 150 Value Destroyed (901) 901 Prototype IDs (5) 100 Alien Tech Used (0) 0 Bonus (151) 151 TOTAL SCORE: 3302 Bonus ------- High Alert Combat Kills 17 Follower Combat Kills 134 Cogmind --------- Core Integrity 428/550 Matter 217/300 Energy 250/250 System Corruption 0% Temperature Cool (0) Movement Core (350) Ox6 Location -8/Materials Parts ------- > --- POWER (1) -------- Ion Engine > --- PROPULSION (3) --- (None) > --- UTILITY (5) ------ Improved Heat Sink Medium Storage Unit Advanced Targeting Computer Hacking Suite > --- WEAPON (2) ------- Heavy Flail > --- INVENTORY (10) --- Heat Sink Hacking Suite Decoy Drone Bay (16/16) Particle Gun Particle Gun Particle Gun Minigun Minigun Peak State ------------ > --- POWER ------------ Ion Engine > --- PROPULSION ------- Compact Wheel > --- UTILITY ---------- Improved Heat Sink Medium Storage Unit Advanced Targeting Computer Hardened Medium Armor Plating Hacking Suite > --- WEAPON ----------- Minigun Heavy Flail > --- INVENTORY -------- Heat Sink Hacking Suite Decoy Drone Bay Particle Gun Particle Gun Particle Gun Advanced Beam Cannon Minigun [Rating: 24] Favorites ----------- Power Ion Engine Engine Ion Engine Power Core Light Nuclear Core Propulsion Aluminum Leg Leg Aluminum Leg Wheel Compact Wheel Utility Medium Storage Unit Device Improved Heat Sink Storage Medium Storage Unit Processor Advanced Targeting Computer Hackware Hacking Suite Protection Light Armor Plating Weapon Small Laser Energy Gun Small Laser Energy Cannon Advanced Beam Cannon Ballistic Gun Light Assault Rifle Launcher Rocket Launcher Impact Weapon Heavy Flail Build | -11 -10 -10 -10 -9 -8 ------- Run | Scr Mat Min Exi Min Mat Slots Evolved 4 | . . . . . 4 Power . | . . . . . . Propulsion 1 | . . . . . 1 Utility 3 | . . . . . 3 Weapon . | . . . . . . Parts Attached 39 | . 1 10 4 . 24 Power 2 | . . 1 . . 1 Engine 1 | . . . . . 1 Core 1 | . . 1 . . . Reactor . | . . . . . . Propulsion 5 | . . 2 1 . 2 Treads . | . . . . . . Leg . | . . . . . . Wheel 5 | . . 2 1 . 2 Hover . | . . . . . . Flight . | . . . . . . Utility 16 | . 1 5 3 . 7 Device 10 | . . 5 2 . 3 Storage 2 | . 1 . 1 . . Processor 1 | . . . . . 1 Hackware 1 | . . . . . 1 Protection 2 | . . . . . 2 Artifact . | . . . . . . Weapon 16 | . . 2 . . 14 Energy Gun 4 | . . . . . 4 Energy Cannon 3 | . . . . . 3 Ballistic Gun 4 | . . 2 . . 2 Ballistic Cannon . | . . . . . . Launcher 2 | . . . . . 2 Special Weapon . | . . . . . . Impact Weapon 3 | . . . . . 3 Slashing Weapon . | . . . . . . Piercing Weapon . | . . . . . . Special Melee Weapon . | . . . . . . Unidentified Prototypes 5 | . . 1 1 . 3 Parts Lost 14 | . . 5 . . 9 Power 2 | . . 1 . . 1 Propulsion 5 | . . 2 . . 3 Utility 2 | . . 1 . . 1 Weapon 5 | . . 1 . . 4 Highest Loss Streak 5 | . . 4 . . 5 To Critical Strikes . | . . . . . . Average Slot Usage (%) 84 | . 85 91 85 100 74 Engine 8 | . 14 12 . . 7 Core 3 | . . . 14 14 . Leg 10 | . 28 20 . . . Wheel 9 | . . 5 15 28 12 Device 9 | . . 8 13 14 11 Storage 12 | . 14 14 14 14 9 Processor 2 | . . . . . 6 Hackware 1 | . . . . . 5 Protection 1 | . . . . . 3 Energy Gun 12 | . 28 21 . . 4 Ballistic Gun 10 | . . 6 28 28 7 Naked Turns . | . . . . . . Heaviest Build 31 | 12 17 18 18 18 31 Greatest Support 36 | 20 20 26 20 20 36 Greatest Overweight (x) 1 | . . 1 1 . 1 Average Overweight (x) . | . . . . . . Largest Inventory Capacity 10 | 8 10 10 10 10 10 Average Capacity 9 | 8 8 10 9 10 10 Most Carried 10 | 6 7 10 9 9 10 Average Carried 8 | 5 6 9 8 8 8 Final Capacity 10 | 8 10 10 10 10 10 Final Carried 9 | 6 7 9 8 9 9 Class Distribution -------------------- 65% | Mutant 34% | Scavenger-Mutant Dominant Class ---------------- Mutant | -10/Materials Mutant | -10/Mines Scavenger-Mutant | -10/Exiles Scavenger-Mutant | -9/Mines Mutant | -8/Materials Resources | -11 -10 -10 -10 -9 -8 ----------- Run | Scr Mat Min Exi Min Mat Matter Collected 685 | 200 . 109 . . 376 Remotely . | . . . . . . Salvage Created 875 | 58 54 259 . . 504 Parts 55 | 3 4 19 . . 29 Haulers Intercepted 1 | . . . . . 1 Recyclers Shooed 1 | . . 1 . . . Parts Field Recycled . | . . . . . . Retrieved Matter . | . . . . . . Parts Self-Destructed . | . . . . . . Prevented . | . . . . . . Kills | -11 -10 -10 -10 -9 -8 ------- Run | Scr Mat Min Exi Min Mat Combat Hostiles Destroyed 26 | . 3 8 . . 15 Guns 20 | . 3 8 . . 9 Cannons 1 | . . . . . 1 AOE 4 | . . . . . 4 Classes Destroyed 7 | 1 1 2 . . 3 Tunneler 1 | . . 1 . . . Hauler 1 | . . . . . 1 Recycler 1 | 1 . . . . . Watcher 1 | . . . . . 1 Swarmer 10 | . 3 4 . . 3 Grunt 12 | . . 4 . . 8 Sentry 4 | . . . . . 4 Best Kill Streak 7 | 1 3 4 . . 7 Combat Bots Only 5 | . 3 3 . . 5 Max Kills in Single Turn 2 | 1 1 2 . . 2 Gunslinging 1 | . . 1 . . . Exploded 1 | . . . . . 1 Melee . | . . . . . . Uniques/NPCs Destroyed . | . . . . . . Combat | -11 -10 -10 -10 -9 -8 -------- Run | Scr Mat Min Exi Min Mat Damage Taken 1451 | . 83 416 . . 952 Core 203 | . . 81 . . 122 Absorbed by Shields . | . . . . . . Core Remaining (%) 83 | 100 . . . 67 . Volleys Fired 80 | 5 5 25 . . 45 Largest 2 | 2 2 2 . . 2 Hottest 130 | 80 80 80 . . 130 Shots Fired 146 | 10 10 50 . . 76 Gun 122 | 10 10 50 . . 52 Cannon 13 | . . . . . 13 Launcher 11 | . . . . . 11 Special . | . . . . . . Kinetic 58 | . . 24 . . 34 Thermal 77 | 10 10 26 . . 31 Explosive 11 | . . . . . 11 Electromagnetic . | . . . . . . Robot Hit Streak 20 | 3 3 7 . . 20 Robot Miss Streak 3 | 2 1 3 . . 3 Penetration Max . | . . . . . . Secondary Targets 3 | . . 3 . . . Max Gunslinging Chain 1 | . . 1 . . . Shots Hit Robots 102 | 6 6 36 . . 54 Core Hits 64 | 2 3 20 . . 39 Critical Kills 2 | . . . . . 2 Critical Parts Destroyed . | . . . . . . Critical Strikes 2 | . . . . . 2 Destroy 2 | . . . . . 2 Melee Attacks 4 | . . . . . 4 Impact 4 | . . . . . 4 Slashing . | . . . . . . Piercing . | . . . . . . Sneak Attacks . | . . . . . . Combat Hostiles . | . . . . . . Follow-up Attacks . | . . . . . . Damage Inflicted 2165 | 68 69 396 . . 1632 Guns 1094 | 68 69 396 . . 561 Cannons 143 | . . . . . 143 Explosions 928 | . . . . . 928 Melee . | . . . . . . Ramming . | . . . . . . Kinetic 498 | . . 143 . . 355 Thermal 739 | 68 69 253 . . 349 Explosive 928 | . . . . . 928 Electromagnetic . | . . . . . . Impact . | . . . . . . Slashing . | . . . . . . Piercing . | . . . . . . Highest Corruption . | . . . . . . Average Corruption . | . . . . . . Corruption Purged . | . . . . . . Corruption Blocked . | . . . . . . Overload Shots . | . . . . . . Overflow Damage 2 | . . . . . 2 Projectiles 2 | . . . . . 2 Explosions . | . . . . . . Melee . | . . . . . . Knockbacks . | . . . . . . Impact . | . . . . . . Kinetic . | . . . . . . Secondary . | . . . . . . Self-Inflicted Damage 6 | . . . . . 6 Shots 1 | . . . . . 1 Rammed . | . . . . . . Targets Rammed . | . . . . . . Kicked . | . . . . . . Crushed . | . . . . . . Highest Temperature 112 | 90 72 112 . . 63 Average Temperature 30 | 47 33 31 . . 16 Received Heat Transfer 669 | . 9 201 . . 459 Siege Activations . | . . . . . . Robots Corrupted . | . . . . . . Combat Hostiles . | . . . . . . Parts Fried . | . . . . . . Impact Corruptions . | . . . . . . Robots Melted 1 | . . . . . 1 Combat Hostiles 1 | . . . . . 1 Parts Melted 4 | . 1 . . . 3 Heat Transferred 1615 | 150 150 575 . . 740 Parts Sabotaged . | . . . . . . Parts Stolen . | . . . . . . Parts Stripped . | . . . . . . Power Chain Reactions . | . . . . . . Missiles Intercepted . | . . . . . . Alert | -11 -10 -10 -10 -9 -8 ------- Run | Scr Mat Min Exi Min Mat Peak Influence 499 | 5 102 282 . . 499 Initial 39 | . 3 39 . . . Average 182 | 3 49 166 . . 265 Maximum Alert Level 2 | . . 1 . . 2 Low Security (%) 64 | 100 100 77 . 100 32 Level 1 30 | . . 22 . . 53 Level 2 5 | . . . . . 13 Level 3 . | . . . . . . Level 4 . | . . . . . . Level 5 . | . . . . . . High Security . | . . . . . . Max Security . | . . . . . . Squads Dispatched 3 | . . . . . 3 Investigation . | . . . . . . Extermination . | . . . . . . Reinforcement 3 | . . . . . 3 Assault . | . . . . . . Garrison . | . . . . . . Intercept . | . . . . . . Searches Triggered . | . . . . . . Construction Impeded . | . . . . . . Haulers Reinforced . | . . . . . . Active Scanning Responses . | . . . . . . Cargo Convoy Interrupts . | . . . . . . Stealth | -11 -10 -10 -10 -9 -8 --------- Run | Scr Mat Min Exi Min Mat Distress Signals . | . . . . . . Communications Jammed . | . . . . . . Distress Signals . | . . . . . . Times Spotted 41 | . 8 12 . . 21 Peak Tracking Total 4 | . 4 4 . . 4 Tactical Retreats 2 | . 1 . . . 1 Traps | -11 -10 -10 -10 -9 -8 ------- Run | Scr Mat Min Exi Min Mat Traps Triggered 1 | . . . . . 1 Indirectly . | . . . . . . Trap Hack Attempts . | . . . . . . Triggered . | . . . . . . Disarmed . | . . . . . . Reprogrammed . | . . . . . . Reused . | . . . . . . Traps Extracted . | . . . . . . Installed . | . . . . . . Triggered . | . . . . . . Machines | -11 -10 -10 -10 -9 -8 ---------- Run | Scr Mat Min Exi Min Mat Machines Disabled 4 | . . 1 . . 3 Max in Single Turn 1 | . . . . . 1 Machines Sabotaged . | . . . . . . Garrisons Compromised . | . . . . . . Overloaded Fab Kills . | . . . . . . Hacking | -11 -10 -10 -10 -9 -8 --------- Run | Scr Mat Min Exi Min Mat Machines Accessed 5 | . 1 1 . . 3 Terminals 4 | . 1 . . . 3 Fabricators . | . . . . . . Repair Stations . | . . . . . . Recycling Units . | . . . . . . Scanalyzers . | . . . . . . Garrison Access . | . . . . . . Total Hacks 10 | . 1 1 . . 8 Successful 3 | . 1 1 . . 1 Failed 7 | . . . . . 7 Catastrophic 1 | . . . . . 1 Database Lockouts . | . . . . . . Manual 8 | . . . . . 8 Terminals 9 | . 1 . . . 8 Fabricators . | . . . . . . Repair Stations . | . . . . . . Recycling Units . | . . . . . . Scanalyzers . | . . . . . . Garrison Access . | . . . . . . Terminal Hacks 3 | . 1 1 . . 1 Open Door 1 | . . 1 . . . Alert Level 1 | . . . . . 1 Zone Layout 1 | . 1 . . . . Fabricator Hacks . | . . . . . . Repair Station Hacks . | . . . . . . Recycling Unit Hacks . | . . . . . . Scanalyzer . | . . . . . . Garrison Access Hacks . | . . . . . . Unauthorized Hacks . | . . . . . . Terminals . | . . . . . . Fabricators . | . . . . . . Repair Stations . | . . . . . . Recycling Units . | . . . . . . Scanalyzers . | . . . . . . Garrison Access . | . . . . . . Data Cores Recovered . | . . . . . . Used . | . . . . . . Hacking Detections 4 | . 1 . . . 3 Full Trace Events . | . . . . . . Feedback Events . | . . . . . . Feedback Blocked . | . . . . . . Robot Schematics Acquired . | . . . . . . Robots Built . | . . . . . . Authchips . | . . . . . . Time . | . . . . . . Total Robot Build Rating . | . . . . . . Part Schematics Acquired . | . . . . . . Parts Built . | . . . . . . Authchips . | . . . . . . Time . | . . . . . . Total Part Build Rating . | . . . . . . Parts Repaired . | . . . . . . Time . | . . . . . . Parts Recycled . | . . . . . . Recycled Matter . | . . . . . . Retrieved Matter . | . . . . . . Retrieved Components . | . . . . . . Parts Scanalyzed . | . . . . . . Part Schematics Acquired . | . . . . . . Parts Damaged . | . . . . . . Bothacking | -11 -10 -10 -10 -9 -8 ------------ Run | Scr Mat Min Exi Min Mat Used RIF Installer . | . . . . . . Robots Hacked . | . . . . . . Non-combat . | . . . . . . Combat . | . . . . . . Robot Hacks Applied . | . . . . . . Relay Couplers Released . | . . . . . . Fabnet Peak Effective % . | . . . . . . Robots Rewired . | . . . . . . Allies Hacked . | . . . . . . Hacks Repelled . | . . . . . . Allies | -11 -10 -10 -10 -9 -8 -------- Run | Scr Mat Min Exi Min Mat Total Allies 5 | . . 5 . . . Largest Group 3 | . . 3 2 . . Highest-Rated Group 40 | . . 40 38 . . Highest-Rated Ally 31 | . . 31 31 . . Total Orders . | . . . . . . Ally Attacks 21 | . . 21 . . . Total Damage 279 | . . 279 . . . Kills 6 | . . 6 . . . Allies Corrupted . | . . . . . . Allies Melted . | . . . . . . Intel | -11 -10 -10 -10 -9 -8 ------- Run | Scr Mat Min Exi Min Mat Robot Analysis Total . | . . . . . . Derelict Logs Recovered 2 | . . . . 2 . Drone Launches . | . . . . . . Drone Recoveries . | . . . . . . Exploration | -11 -10 -10 -10 -9 -8 ------------- Run | Scr Mat Min Exi Min Mat Turns Passed 1473 | 32 133 571 226 39 472 Spaces Moved 1058 | 12 93 407 231 48 267 Core . | . . . . . . Treads . | . . . . . . Legs 419 | 12 93 314 . . . Wheels 639 | . . 93 231 48 267 Hover . | . . . . . . Flight . | . . . . . . Fastest Speed 80 | 120 120 90 80 80 86 Average Speed 107 | 120 120 113 93 80 109 Slowest Speed 120 | 120 120 120 95 80 115 Overloaded Moves . | . . . . . . Propulsion Burnouts . | . . . . . . Robots Hopped . | . . . . . . Cave-ins Triggered . | . . . . . . Exploration Rate (%) 35 | 2 23 84 61 16 29 Regions Visited 5 Branch Regions 3 Pre-discovered Areas 2 | . . . . 2 . Known Exits Taken 1 | . . . . 1 . Unknown Exits Taken 4 | 1 1 1 1 . . Scrap Searched 1 | . . 1 . . . Spaces Dug 4 | . . . . . 4 Terrain Destroyed 70 | . . . . . 70 Melee 4 | . . . . . 4 Projectile . | . . . . . . AOE 66 | . . . . . 66 Terrain Rammed . | . . . . . . Walls Destroyed . | . . . . . . Machines Disabled . | . . . . . . Actions | -11 -10 -10 -10 -9 -8 --------- Run | Scr Mat Min Exi Min Mat Total 1251 | 20 104 469 240 48 370 Wait 29 | . 4 18 . . 7 Move 1053 | 11 92 406 230 47 267 Hop . | . . . . . . Pick Up 22 | 2 1 4 3 1 11 Fast Attach 17 | . 1 7 3 . 6 Attach 16 | . . 3 1 . 12 Detach 6 | . . 1 1 . 4 Swap 7 | . . . . . 7 Drop 17 | 2 1 5 2 . 7 Fire 80 | 5 5 25 . . 45 Melee 4 | . . . . . 4 Ram . | . . . . . . Kick . | . . . . . . Crush . | . . . . . . Escape Stasis . | . . . . . . Rewire . | . . . . . . Trap . | . . . . . . Miscellaneous . | . . . . . . Route ------- -11/Scrapyard -10/Materials -10/Mines (discovered 2 exits: [*Mat] / *Exi) -10/Exiles -9/Mines (discovered 2 exits: *Mat x2) -8/Materials (discovered 1 exit: [*Sto]) History --------- Turn | Location | Event 16 | -11/Scrapyard | Discovered new exit (range 2) 33 | -11/Scrapyard | Entered Materials 135 | -10/Materials | Discovered new exit (range 11) 166 | -10/Materials | Entered Mines 234 | -10/Mines | Found the Drone Emporium 239 | -10/Mines | Found Prototype Device 268 | -10/Mines | Assisted by bots powering up and referring to "LRC-V3" 316 | -10/Mines | Build established: Mutant 516 | -10/Mines | Found a damaged Exp. Sensor Array with a note attached 520 | -10/Mines | Found Prototype Device 520 | -10/Mines | Identified Exp. Sensor Array 651 | -10/Mines | Discovered new exit (range 7) 710 | -10/Mines | Deemed a non-threat by the Exiles lab entrance 711 | -10/Mines | Discovered new exit (range 5) 712 | -10/Mines | Lost 4 parts (1p1n1u1w) 737 | -10/Mines | Entered Exiles 737 | -10/Exiles | Found Exiles lab abandoned 737 | -10/Exiles | Accompanied by 2 allies 767 | -10/Exiles | Led the pair of lost Derelicts to a safe place 935 | -10/Exiles | Identified Decoy Drone Bay 953 | -10/Exiles | Discovered new exit (range 14) 963 | -10/Exiles | Entered Mines 964 | -9/Mines | Learned location of Storage (-8) 972 | -9/Mines | Received a Rocket Launcher from a helpful Derelict 983 | -9/Mines | Build established: Scavenger-Mutant 985 | -9/Mines | Learned location of Zion (-7) 989 | -9/Mines | Identified exit to Materials 997 | -9/Mines | Discovered exit to Materials (range 8) 1002 | -9/Mines | Entered Materials 1002 | -8/Materials | Evolved 4 slots: Propulsion x1, Utility x3 1015 | -8/Materials | Discovered new exit (range 10) 1085 | -8/Materials | Lost 5 parts (1p2n2w) 1474 | -8/Materials | Self-destructed Last Messages --------------- 01394_ Acquired Hacking Suite. 01395_ K-01 Serf collects debris. 01398_ K-01 Serf cleans the Hadron Collector. 01402_ K-01 Serf collects debris. 01414_ Dropped Imp. Heat Sink. 01427_ K-01 Serf collects debris. 01447_ O-24 Administrator: "IFF HANDSHAKE FAILED. SECURING TERMINAL." 01452_ K-01 Serf collects debris. 01457_ O-24 Administrator uses terminal to summon reinforcements. 01457_ ALERT: Hostiles spotted, dispatching reinforcements to Terminal M012. 01457_ O-24 Administrator locks terminal. 01460_ U-05 Engineer builds a Door. 01460_ R-06 Scavenger inserts Sml. Matter Pod into recycling unit. 01463_ Connecting with Terminal... 01473_ Triggered Blade Trap. 01473_ Massive razor-sharp blades shoot up from within the floor. 01473_ Hrd. Medium Armor Plating severed. 01473_ Adv. Beam Cannon severed. 01473_ Com. Wheel severed. Map ----- +----------------------------------------------------+ | ?????????????????????????????????????? | | ???????????????????? ????????????????? | | ???????????????????? #???????????????? | | ????????????????## ##??????????????? | | ???????????????## #??????????????? | | ???????????????? " #??????????????? | | ???????????????? "T ???????????????? | | ????????????????? ???????????????? | | ????????????????? #############??? | | ?????????????????# ## #### | | ?????????????????# ## """ ## ! | | ?????????????????# ## """ ## ! | | ?????????????????# ## """ ]] ## ! | | ?????????????????# ## ]] "" | | ?????????????????# ## ]] ## | | ?????????######### ## ## | | ?????????# T ###/#+########## | | ?????????# u ^ | | ?????????# w | | ?????????# """ ^^ | | ?????????### """ ############## | | ???????????# """ ####????????????# | | ????????#### #???????????????#!! | | ????????#""" r #???????????????#!! | | ????????#"Y =""" #???????????????### | | ????????#"""]@""" #?????????????????? | | ????????#### """ #?????????????????? | | ???????????# #?????????????????? | | ???????????# #?????????????????? | | ??????????? """ #?????????????????? | | ??????????? ^ """ #?????????????????? | | ?????????? """ #?????????????????? | | ?????????? ? #?????????????????? | | ?????????[ ??#?????????????????? | | ?????????[ ??????????????????????? | | ????????#### ??????????????????????? | | ???????????# #??????????????????????? | | ???????????# ???????????????????????? | | ???????????? ???????????????????????? | | ???????????? ???????????????????????? | | ???????????? ???????????????????????? | | ?????????????????????????????????????? | | ?????????????????????????????????????? | | ?????????????????????????????????????? | | ?????????????????????????????????????? | | ?????????????????????????????????????? | | ?????????????????????????????????????? | | ?????????????????????????????????????? | | ?????????????????????????????????????? | | ?????????????????????????????????????? | +----------------------------------------------------+ Best States ------------- Heat Dissipation 59 Energy Generation 14 Energy Capacity 250 Matter Stores 300 Matter Capacity 300 Sight Range 16 Terrain Scan Density 10 Armor Coverage 225 Evasion (%) 55 Targeting Accuracy 8 Offensive Hacking 10 Item Schematics ----------------- None Robot Schematics ------------------ None Fabricated ------------ Nothing Alien Tech Used ----------------- None Achievements -------------- None Challenges ------------ None Game ------ Seed DecoySeismicRay Manual? 0 Play Time 00:24:59 Cumulative 111.6 hours Start 2022.05.03 @ 12:59:13 End 2022.05.03 @ 18:58:14 Sessions 3 Manual Loads 0 Difficulty Rogue Special Mode None Game No. 128 Rogue 128 Adventurer 0 Explorer 0 Win Type - Total 1 Types 1/0/0/0/0/0/0/0/0 Lore% 57 Gallery% 62 Achievement% 50 Wizard Run 0 Options --------- ASCII 0 Keyboard 0 Movement Mouse Keybinds 0 Fullscreen 1 Font 24/Smallcaps Map View 76x50 Tactical HUD 1 Map Filters NONE Filters NONE Steam 1 RUN: e8cca147-f4c3-4c00-88c2-6bde046290b6